bitfinex/quotes_ETHUSD_20260207
["timestamp","ask_amount","ask_price","bid_price","bid_amount"]
[1770428781387,0.002,2061.0,2059.7,4.38597221]
[1770428781679,0.002,2061.0,2059.9,4.34205263]
[1770428781880,0.002,2061.0,2059.8,0.43859722]
[1770428781881,0.002,2061.0,2060.0,4.34205263]
[1770428782059,0.002,2061.0,2060.2,4.34205263]
[1770428782780,0.002,2061.0,2060.5,4.34205263]
[1770428782949,0.002,2061.2,2060.5,4.34205263]
[1770428783149,0.002,2061.2,2060.7,4.38597221]
[1770428784056,1e-08,2061.4,2060.9,4.34205263]
[1770428784254,1.21042684,2062.0,2060.9,4.34205263]
[1770428784455,1.21439677,2062.1,2060.9,4.34205263]
[1770428784850,0.002,2062.1,2060.9,4.34205263]
[1770428785052,1.82069662,2062.1,2061.0,4.89757]
[1770428785245,1.2143636,2062.1,2061.0,4.89757]
[1770428786185,0.002,2062.1,2061.2,4.34205263]
[1770428786957,0.002,2062.1,2061.1,1.21294454]
[1770428787583,0.002,2062.1,2060.6,1.65181077]
[1770428787584,4.46660048,2062.0,2060.6,1.65181077]
[1770428787883,4.4226809,2061.8,2060.6,0.43859722]
[1770428788178,4.4226809,2061.8,2060.1,0.001]
[1770428788179,1.21276802,2061.4,2060.1,4.85509077]
[1770428788378,5.63544892,2061.4,2060.1,4.85509077]
[1770428788780,5.63544892,2061.4,2060.1,1.21453332]
[1770428790690,5.63544892,2061.4,2060.2,0.03111874]
[1770428790857,1.0486521,2061.3,2060.3,0.03125891]
[1770428791385,1.0486521,2061.3,2060.3,4.37331154]
[1770428791881,1.0486521,2061.3,2060.2,0.03125891]
[1770428792086,5.471333,2061.3,2060.1,1.21453332]
[1770428792269,0.6684101,2061.2,2060.1,2.25884776]
[1770428792788,1.21294454,2061.1,2060.1,1.04531444]
[1770428793091,4.4226809,2061.0,2060.1,0.001]
[1770428793392,1.25686412,2061.1,2059.9,0.001]
[1770428793393,4.4226809,2060.7,2059.9,0.001]
[1770428793592,4.4226809,2060.2,2059.0,0.001]
[1770428793780,4.90886857,2060.1,2059.0,0.001]
[1770428794004,4.4226809,2059.7,2059.0,0.001]
[1770428794293,4.4226809,2059.7,2058.7,0.001]
[1770428794800,4.46660048,2059.5,2058.7,0.001]
[1770428795166,4.46660048,2059.5,2058.0,4.85885039]
[1770428795167,4.46660048,2059.5,2058.0,1.21476104]
[1770428795389,4.46660048,2059.5,2058.0,0.6074057]
[1770428795390,4.46660048,2059.2,2058.0,0.6074057]
[1770428795788,4.46660048,2059.2,2057.6,9.20207854]
[1770428796091,4.4188768,2058.9,2057.8,1.21485942]
[1770428796479,0.1024,2059.1,2057.4,4.40628591]
[1770428796798,1.21429959,2058.8,2057.5,1.21506682]
[1770428797572,1.21429959,2058.8,2057.5,5.62135273]
[1770428797777,0.6071498,2058.7,2057.6,5.45444791]
[1770428797993,1.21428423,2058.9,2057.6,5.45444791]
[1770428798194,4.37495722,2059.3,2057.8,4.40628591]
[1770428798195,1.21400475,2059.3,2057.8,4.40628591]
[1770428798404,0.7,2058.7,2058.0,4.40628591]
[1770428798694,1.21406371,2059.2,2058.2,4.40628591]
[1770428798914,1.91404481,2059.3,2058.0,5.62102668]
[1770428799078,1.91404481,2059.3,2058.1,4.40628591]
[1770428800778,1.91404481,2059.3,2058.2,1.21465358]
[1770428800978,1.91404481,2059.3,2058.1,1.21466797]
[1770428801401,1.91404481,2059.3,2058.2,4.40628591]
[1770428801570,3.13087364,2059.3,2058.3,0.56209539]
[1770428803390,3.13087364,2059.3,2058.4,1.21453556]
[1770428806095,3.13087364,2059.3,2058.3,1.77664586]
[1770428806406,3.13087364,2059.3,2058.3,0.56209539]
[1770428806575,0.79867182,2059.2,2058.0,4.858952]
[1770428806775,0.79867182,2059.2,2058.1,1.21468563]
[1770428807196,0.79867182,2059.2,2058.0,4.858952]
[1770428807197,5.17362904,2059.2,2058.2,1.21464056]
[1770428807498,0.04391958,2058.9,2057.4,4.40628591]
[1770428807690,4.4188768,2058.9,2057.7,1.21494608]
[1770428807867,4.4188768,2058.9,2057.6,1.2149662]
[1770428808072,4.4188768,2058.9,2057.4,4.40628591]
[1770428808073,4.4188768,2058.9,2057.5,1.21503479]
[1770428808393,4.4188768,2058.9,2057.6,1.21500676]
[1770428808569,0.44188768,2058.8,2057.8,1.21486667]
[1770428808774,0.1024,2059.0,2057.7,1.21490547]
[1770428808967,0.1024,2059.0,2057.6,5.90810757]
[1770428808968,4.4188768,2058.9,2057.6,1.04817814]
[1770428809194,4.4188768,2058.9,2057.5,1.21504914]
[1770428809569,0.70000001,2058.7,2057.5,1.21504914]
[1770428809985,0.70000001,2058.7,2057.8,0.001]
[1770428811313,5.07495723,2058.7,2057.8,0.001]
[1770428811609,1.21441756,2058.6,2057.8,0.001]
[1770428811779,1.11470451,2058.5,2057.8,0.001]
[1770428813504,0.002,2058.8,2058.0,4.40628591]
[1770428815612,0.002,2058.8,2058.2,4.40628591]
[1770428815787,0.002,2058.8,2058.0,1.21475547]
[1770428816107,0.002,2058.8,2057.8,4.40728591]
[1770428816312,0.002,2058.8,2057.9,1.21482931]
[1770428816693,0.002,2058.8,2058.0,1.2147538]
[1770428817608,0.002,2058.8,2058.1,4.40628591]
[1770428819795,0.002,2058.8,2058.2,1.21465358]
[1770428819992,0.002,2058.8,2058.2,5.62093949]
[1770428820314,0.002,2058.8,2058.3,1.04796581]
[1770428820911,0.002,2058.8,2058.1,4.85871864]
[1770428820912,0.002,2058.8,2058.1,1.21467069]
[1770428821110,0.002,2058.8,2058.1,1.21470915]
[1770428821502,1.04114785,2058.7,2058.1,1.21470915]
[1770428821811,0.002,2058.8,2058.1,1.21470915]
[1770428822113,1.04120817,2058.7,2057.9,5.62111656]
[1770428822289,1.04120817,2058.6,2058.0,5.49852535]
[1770428822490,1.04120817,2058.5,2058.0,5.49852535]
[1770428822803,0.002,2058.8,2058.0,1.09223944]
[1770428822991,1.04348357,2058.7,2058.0,0.001]
[1770428823193,1.04348357,2058.6,2058.0,0.001]
[1770428823520,1.04348357,2058.5,2058.0,0.001]
[1770428823720,1.04348357,2058.4,2058.0,0.001]
[1770428823926,2.25809529,2058.3,2058.0,0.00010689]
[1770428824091,1.04348357,2058.2,2058.0,0.00010689]
[1770428824406,1.04348357,2058.1,2058.0,0.00010689]
[1770428824821,1.21460102,2058.3,2058.0,0.00010689]
[1770428824822,1.04348357,2058.2,2058.0,0.00010689]
[1770428825020,1.04348357,2058.1,2058.0,0.00010689]
[1770428825396,9.2346174,2058.8,2058.0,4.4063928]
[1770428825397,1.21439085,2058.7,2058.0,4.4063928]
[1770428825712,1.21439085,2058.7,2058.0,0.00010689]
[1770428825917,0.002,2058.8,2058.0,0.00010689]
[1770428826288,4.14403835,2058.8,2058.0,0.00010689]
[1770428826487,4.14403835,2058.8,2057.8,0.001]
[1770428828014,1.21435857,2058.7,2057.8,0.001]
[1770428828221,1.02158312,2058.6,2057.8,0.001]
[1770428828820,1.21435857,2058.7,2057.8,4.11856618]
[1770428830121,0.002,2058.8,2057.9,5.33239683]
[1770428832734,4.2352672,2058.8,2057.8,0.001]
[1770428833124,0.42791868,2058.7,2057.8,0.001]
[1770428833434,3.91721163,2058.7,2057.8,1.21586677]
[1770428833619,3.91721163,2058.7,2057.8,1.21588729]
[1770428833931,3.91721163,2058.7,2057.8,0.001]
[1770428834431,1.21441756,2058.6,2057.8,0.001]
[1770428834605,2.21354751,2058.6,2057.8,0.001]
[1770428834801,0.002,2058.8,2057.8,4.11856618]
[1770428835025,1.21634619,2058.8,2057.8,4.11856618]
[1770428835938,1.06634619,2058.8,2058.0,0.001]
[1770428836107,3.49129295,2059.0,2058.2,4.11756618]
[1770428836108,0.002,2059.0,2058.2,4.11756618]
[1770428836303,0.002,2059.0,2058.5,1.21447656]
[1770428836635,0.002,2059.0,2058.6,4.11756618]
[1770428837302,1.04652438,2058.9,2058.6,4.11756618]
[1770428837506,0.002,2059.0,2058.6,4.11756618]
[1770428837705,1.04648525,2058.9,2058.7,4.65077045]
[1770428837937,0.002,2059.0,2058.7,4.65077045]
[1770428838613,0.002,2059.0,2058.8,1.21429959]
[1770428839319,1.04541055,2058.9,2058.8,4.11756618]
[1770428839507,0.002,2059.0,2058.8,4.11756618]
[1770428839708,0.002,2059.0,2058.9,0.53319224]
[1770428840631,0.002,2059.7,2058.9,0.53319224]
[1770428840632,0.002,2059.7,2059.0,1.21418164]
[1770428840838,1.04477473,2059.6,2059.0,1.21418164]
[1770428841040,1.04477473,2059.5,2059.0,5.33174782]
[1770428841210,0.002,2059.7,2059.1,4.11756618]
[1770428841412,0.002,2059.7,2059.2,0.53317478]
[1770428841824,0.002,2059.7,2058.9,0.53319224]
[1770428842014,0.002,2059.7,2058.8,1.21429707]
[1770428842421,3.47960862,2060.6,2060.0,4.11756618]
[1770428842634,0.002,2061.1,2060.3,1.21341552]
[1770428842819,0.99087329,2060.9,2060.3,1.21341552]
[1770428843141,0.99087329,2060.9,2060.3,0.60670776]
[1770428843608,0.6,2060.7,2060.2,1.21346894]
[1770428843805,0.99087329,2060.9,2060.1,1.21349475]
[1770428844133,0.99087329,2060.9,2060.1,1.21349747]
[1770428844339,0.99087329,2060.9,2060.3,4.11756618]
[1770428844526,1.2174216,2062.0,2060.5,4.11756618]
[1770428844725,1.21253273,2061.8,2060.7,1.21317998]
[1770428844926,1.21253273,2061.8,2060.6,1.62498344]
[1770428845638,4.2332672,2061.7,2060.6,1.21323502]
[1770428846211,4.2332672,2061.7,2060.4,1.213324]
[1770428846413,4.2332672,2061.7,2060.5,1.21328912]
[1770428846730,4.2332672,2061.5,2060.4,1.2133556]
[1770428846933,1.21276802,2061.4,2060.2,4.85386139]
[1770428847132,1.02971073,2061.3,2060.2,5.87235159]
[1770428848738,0.6,2061.1,2060.2,5.87235159]
[1770428848945,1.21300339,2061.0,2059.7,4.11756618]
[1770428849316,5.44627059,2061.0,2060.2,1.21346832]
[1770428849514,5.44627059,2061.0,2060.1,1.21350453]
[1770428849744,5.44627059,2061.0,2060.1,1.21349921]
[1770428850048,1.06529126,2060.9,2060.1,1.21349921]
[1770428851139,1.21312111,2060.8,2059.5,5.33145304]
[1770428851514,5.91762357,2060.9,2059.6,4.944902]
[1770428851515,2.2783916,2060.9,2059.6,4.944902]
[1770428851714,2.2783916,2060.9,2059.6,4.084163]
[1770428851913,0.60670821,2060.8,2059.7,5.05912778]
[1770428852110,1.81298794,2061.1,2059.7,5.05912778]
[1770428852450,0.6,2061.1,2059.9,4.11756618]
[1770428852618,1.21286037,2061.3,2059.9,4.11756618]
[1770428852812,5.44612757,2061.3,2059.9,4.11756618]
[1770428853010,5.44612757,2061.3,2060.0,1.21359223]
[1770428853214,1.02972035,2061.2,2060.1,1.01855273]
[1770428853842,9.08588342,2061.6,2060.9,4.11756618]
[1770428853843,0.002,2061.6,2060.9,4.11756618]
[1770428854231,0.005,2062.0,2060.9,4.11756618]
[1770428854633,0.005,2062.0,2061.1,4.16148576]
[1770428855212,0.005,2062.0,2061.2,1.21288569]
[1770428855516,0.005,2062.0,2061.3,1.02259142]
[1770428856749,0.005,2062.0,2061.2,1.21288569]
[1770428857242,0.005,2062.0,2061.2,4.40711997]
[1770428857445,0.005,2062.0,2060.9,4.85154279]
[1770428857614,0.005,2062.0,2061.0,7.14813997]
[1770428857814,0.005,2062.0,2060.9,4.85154279]
[1770428858041,0.005,2062.0,2061.0,0.61085246]
[1770428858453,0.005,2062.0,2061.4,10.20465164]
[1770428858624,0.005,2062.0,2061.3,4.40711997]
[1770428858942,0.005,2062.0,2061.4,2.12]
[1770428859130,0.005,2062.0,2061.3,4.40711997]
[1770428859332,0.005,2062.0,2061.5,1.21270919]
[1770428860422,0.005,2062.0,2061.4,1.21275746]
[1770428860825,0.005,2062.0,2061.2,4.85143347]
[1770428861016,0.005,2062.0,2061.4,1.21276045]
[1770428861214,0.6,2061.8,2061.4,1.21276045]
[1770428861419,0.005,2062.0,2061.4,5.01351946]
[1770428861715,0.005,2062.0,2061.4,0.60739949]
[1770428861943,0.002,2061.8,2061.4,0.001]
[1770428862141,1.21215189,2062.5,2061.4,0.001]
[1770428862646,5.65671764,2062.5,2061.4,0.001]
[1770428863150,1.21215189,2062.5,2061.4,0.001]
[1770428863322,4.44456575,2062.4,2061.4,0.001]
[1770428863520,1.21229754,2062.2,2061.4,0.001]
[1770428864548,5.65686329,2062.2,2061.4,0.001]
[1770428864959,4.44456575,2062.1,2061.4,0.001]
[1770428865454,4.44456575,2061.9,2061.4,0.001]
[1770428865650,4.44456575,2061.9,2061.1,0.001]
[1770428865823,0.56569809,2061.8,2061.1,0.001]
[1770428866435,1.77793707,2062.3,2061.1,0.001]
[1770428866642,1.77793707,2062.3,2061.1,0.01614563]
[1770428866849,6.22250282,2062.3,2061.1,0.001]
[1770428867018,4.44456575,2062.2,2061.1,0.001]
[1770428867218,1.77793707,2062.3,2061.1,0.001]
[1770428867446,0.66267884,2062.2,2061.1,0.45847072]
[1770428867652,1.21235633,2062.1,2061.2,1.21288569]
[1770428868864,5.65692208,2062.1,2061.1,1.21389726]
[1770428869656,5.65692208,2062.1,2061.1,0.001]
[1770428871565,4.44456575,2062.0,2061.1,0.001]
[1770428871861,4.44456575,2061.8,2061.1,0.001]
[1770428872038,4.44456575,2061.6,2061.1,0.001]
[1770428872358,4.44456575,2061.6,2061.1,0.00018996]
[1770428872564,4.44456575,2061.6,2060.4,1.21334132]
[1770428872739,4.44456575,2061.6,2060.5,1.21325685]
[1770428873057,4.44456575,2061.6,2060.5,1.21329586]
[1770428873262,4.44456575,2061.6,2060.3,4.85457566]
[1770428873263,4.94559272,2061.5,2060.4,1.2133514]
[1770428873554,4.44456575,2061.5,2060.4,1.2133514]
[1770428873748,1.21276802,2061.4,2060.3,0.001]
[1770428874760,4.84994692,2061.9,2060.3,4.40811997]
[1770428874761,4.85059213,2061.7,2060.3,4.40811997]
[1770428875132,4.85059213,2061.7,2061.0,0.001]
[1770428875347,1.41472935,2061.6,2061.0,0.001]
[1770428875873,1.21270919,2061.5,2061.0,0.001]
[1770428877577,2.6274151,2061.6,2061.0,0.001]
[1770428878167,2.62739038,2061.6,2061.0,0.001]
[1770428878372,0.62430201,2061.5,2061.0,0.001]
[1770428879883,1.21276802,2061.4,2061.0,0.001]
[1770428880376,1.21276802,2061.4,2060.5,1.21329545]
[1770428881165,4.44456575,2061.3,2060.5,1.21329365]
[1770428881753,1.21276802,2061.4,2060.5,1.21329365]
[1770428881970,1.81926141,2061.3,2060.4,4.85338957]
[1770428882181,0.60638401,2061.3,2060.4,9.26050954]
[1770428882386,1.81921387,2061.3,2060.4,4.85338957]
[1770428882687,1.81925716,2061.3,2060.4,4.85338957]
[1770428882890,1.21287315,2061.3,2060.4,4.85338957]
[1770428884065,4.44456575,2061.6,2060.3,0.001]
[1770428884266,4.85044782,2061.7,2060.3,4.40811997]
[1770428884998,1.21457853,2061.8,2060.4,4.40711997]
[1770428885163,1.21457853,2061.8,2060.5,4.40711997]
[1770428885366,1.05091764,2061.7,2060.6,0.440712]
[1770428885688,1.05091764,2061.7,2060.6,4.85823606]
[1770428886002,4.1085434,2061.6,2060.6,0.440712]
[1770428886163,1.21270919,2061.5,2060.3,0.001]
[1770428886364,5.32125259,2061.5,2060.3,0.001]
[1770428886888,4.1085434,2061.4,2060.3,0.001]
[1770428887275,1.21270919,2061.5,2060.3,4.41852406]
[1770428887592,0.6063546,2061.4,2060.5,0.001]
[1770428888165,1.21282685,2061.3,2060.5,1.21429774]
[1770428888662,1.81916298,2061.4,2060.5,1.21429774]
[1770428889289,0.6063546,2061.4,2060.5,1.21429774]
[1770428889489,1.21267868,2061.6,2060.5,1.21429774]
[1770428889490,1.21269233,2061.6,2060.5,5.50231385]
[1770428889880,2.26355227,2061.7,2060.6,4.28801611]
[1770428890281,2.26355227,2061.7,2060.7,1.21317998]
[1770428892067,6.5439161,2061.7,2060.7,1.21317998]
[1770428892296,1.21270919,2061.5,2060.5,4.85371994]
[1770428892974,5.49307302,2061.5,2060.5,1.21429774]
[1770428893174,2.35229823,2061.6,2060.5,5.50231385]
[1770428893694,1.21458405,2061.8,2060.6,4.28801611]
[1770428893896,4.28036383,2061.7,2060.5,1.21429774]
[1770428894401,4.28036383,2061.5,2060.5,1.21429774]
[1770428894897,4.28036383,2061.3,2060.3,1.2143801]
[1770428895098,4.28036383,2061.3,2060.3,0.001]
[1770428895297,4.28036383,2061.1,2060.3,0.001]
[1770428896486,1.21300339,2061.0,2060.3,0.001]
[1770428898282,4.85037975,2061.7,2060.3,4.28901611]
[1770428898482,9.13074358,2061.7,2060.4,5.50137273]
[1770428898688,5.31489734,2061.6,2060.4,7.02229531]
[1770428899194,1.03453351,2061.6,2060.5,4.28801611]
[1770428899584,1.03453351,2061.6,2060.5,4.28901611]
[1770428899774,0.002,2061.3,2060.5,4.28901611]
[1770428899972,0.002,2061.3,2060.5,0.001]
[1770428900814,1.03662039,2061.3,2060.5,0.001]
[1770428901478,0.002,2061.3,2060.5,4.28901611]
[1770428902386,0.002,2061.3,2060.6,4.28801611]
[1770428902580,0.002,2061.3,2060.7,5.50119609]
[1770428903214,0.002,2061.3,2060.7,1.21317998]
[1770428903391,0.002,2061.3,2060.8,0.60658999]
[1770428904781,0.002,2061.3,2060.9,1.21306225]
[1770428909194,0.002,2061.3,2060.8,1.21312083]
[1770428910786,0.002,2061.3,2060.5,0.001]
[1770428913003,0.002,2061.3,2060.7,0.001]
[1770428913524,4.28236383,2061.3,2060.3,0.001]
[1770428913697,4.28236383,2061.1,2060.3,0.001]
[1770428915321,4.28036383,2060.9,2060.3,0.001]
[1770428915830,4.28036383,2060.9,2059.6,0.001]
[1770428916131,4.28036383,2060.9,2059.7,0.001]
[1770428916501,1.21300339,2061.0,2059.9,4.36450088]
[1770428916804,1.21498463,2061.1,2060.0,4.80534293]
[1770428917125,1.21498463,2061.1,2060.1,0.001]
[1770428917310,0.002,2061.1,2060.1,5.62295378]
[1770428917515,0.002,2061.1,2060.2,4.36450088]
[1770428917825,0.65209685,2061.1,2060.3,0.56329538]
[1770428919623,0.002,2061.1,2060.4,5.5778575]
[1770428923743,4.28000654,2061.1,2059.4,4.36550088]
[1770428924031,4.27800654,2060.6,2059.7,1.21474813]
[1770428924607,1.21328259,2060.6,2059.8,1.21368309]
[1770428924913,1.21328259,2060.6,2059.7,4.85584058]
[1770428924914,1.21328259,2060.6,2059.7,1.21472413]
[1770428926227,0.42800065,2061.0,2059.7,5.57922501]
[1770428926228,1.21306225,2060.9,2059.7,5.57922501]
[1770428926433,4.27800654,2060.8,2059.7,1.21472413]
[1770428926733,1.76229303,2060.7,2059.7,2.30732294]
[1770428926908,1.76229303,2060.7,2059.9,0.001]
[1770428927420,4.27800654,2060.6,2059.9,0.001]
[1770428928706,1.21329774,2060.5,2059.9,0.002]
[1770428930837,4.85314216,2060.6,2059.9,0.002]
[1770428931139,0.66154879,2060.5,2059.9,0.002]
[1770428931329,0.66154879,2060.5,2060.0,0.001]
[1770428932944,0.66154879,2060.5,2059.4,9.22081259]
[1770428932945,4.27800654,2060.3,2059.4,0.001]
[1770428933242,1.2572762,2060.4,2059.4,0.001]
[1770428933243,4.27800654,2060.0,2059.4,0.001]
[1770428933427,0.42780065,2059.9,2059.4,0.001]
[1770428933627,4.27800654,2060.3,2059.4,0.001]
[1770428935020,1.21347441,2060.2,2059.4,0.001]
[1770428936913,4.85343323,2060.4,2059.4,0.001]
[1770428938744,1.87489307,2060.5,2059.4,0.001]
[1770428938942,1.87489307,2060.5,2059.5,1.21388686]
[1770428939245,1.87489307,2060.5,2059.6,0.001]
[1770428939456,0.002,2060.3,2059.6,0.001]
[1770428940523,4.28000654,2060.3,2059.6,0.001]
[1770428941049,1.21347441,2060.2,2059.6,0.001]
[1770428941354,1.03473786,2060.1,2059.6,0.001]
[1770428942855,1.21546115,2060.3,2059.6,0.001]
[1770428945643,3.93454773,2060.3,2059.6,0.001]
[1770428946974,3.93254773,2060.0,2059.1,0.001]
[1770428947845,3.92185781,2059.8,2059.1,0.001]
[1770428948037,0.5135509,2059.7,2059.1,0.001]
[1770428948242,4.43540871,2059.7,2059.1,0.001]
[1770428948439,3.92185781,2059.4,2058.5,0.001]
[1770428948963,4.53780871,2059.7,2058.5,0.001]
[1770428949139,4.37563868,2059.6,2058.5,0.60847215]
[1770428949330,4.37563868,2059.6,2058.5,0.001]
[1770428950034,3.92185781,2059.4,2058.5,0.001]
[1770428950252,1.21388686,2059.5,2058.5,0.001]
[1770428951557,3.92185781,2059.4,2058.5,0.001]
[1770428952057,1.21400475,2059.3,2058.5,0.001]
[1770428952244,0.99918816,2059.2,2058.7,0.001]
[1770428953541,1.21393348,2059.5,2058.7,0.001]
[1770428954968,1.21393348,2059.5,2058.7,3.93460121]
[1770428956437,5.30917895,2059.6,2058.8,1.21429959]
[1770428956438,1.66762541,2059.6,2058.8,1.21429959]
[1770428956661,1.21365114,2059.9,2058.8,5.1479008]
[1770428958464,1.21365114,2059.9,2058.9,3.93360121]
[1770428958759,1.21554165,2060.1,2059.1,3.93360121]
[1770428958938,1.21554165,2060.1,2059.0,1.21418164]
[1770428958939,1.21554165,2060.1,2059.3,3.93360121]
[1770428959138,0.002,2060.1,2059.3,3.93360121]
[1770428959436,5.13740652,2060.1,2059.2,0.51477829]
[1770428959640,1.21554871,2060.1,2059.1,3.93360121]
[1770428960441,0.002,2060.1,2059.1,3.93360121]
[1770428960862,0.002,2060.1,2059.3,3.93360121]
[1770428962969,0.002,2060.1,2059.4,1.2139458]
[1770428964370,0.002,2060.1,2059.0,3.93360121]
[1770428964573,3.92385781,2060.1,2059.0,1.21417503]
[1770428964739,4.31424359,2060.0,2059.0,1.21514121]
[1770428964936,1.21365114,2059.9,2059.0,0.001]
[1770428965148,1.21565114,2059.9,2059.0,3.93460121]
[1770428965362,5.13750895,2059.9,2059.0,0.001]
[1770428967061,5.1356268,2059.7,2059.0,0.001]
[1770428967260,0.99907028,2059.6,2059.0,0.001]
[1770428968064,4.92092809,2059.6,2059.0,0.001]
[1770428968449,3.92185781,2059.5,2059.0,0.001]
[1770428969052,1.2139458,2059.4,2059.0,0.001]
[1770428969355,1.2139458,2059.4,2058.7,0.001]
[1770428969555,0.64870535,2059.3,2058.7,0.001]
[1770428969873,4.57056316,2059.3,2058.7,0.001]
[1770428970444,0.64870535,2059.3,2058.7,3.93460121]
[1770428970642,4.85491695,2059.8,2058.7,3.93460121]
[1770428971066,1.21571006,2059.9,2058.8,5.1479008]
[1770428971888,5.13756787,2059.9,2058.8,5.1479008]
[1770428972046,1.21571006,2059.9,2058.9,3.93360121]
[1770428972248,0.6462812,2059.8,2059.0,0.51479008]
[1770428972995,1.21571006,2059.9,2059.0,0.51479008]
[1770428973149,1.21571006,2059.9,2059.1,1.21412267]
[1770428973351,1.21571006,2059.9,2059.1,5.14772388]
[1770428974651,0.002,2059.9,2059.2,3.93360121]
[1770428974851,0.002,2059.9,2059.3,4.4483736]
[1770428975181,0.002,2059.9,2059.4,1.2139458]
[1770428975489,0.002,2059.9,2059.5,3.93360121]
[1770428976783,0.002,2059.9,2059.3,0.51477239]
[1770428977091,0.002,2059.9,2059.3,1.2139961]
[1770428977384,0.002,2059.9,2059.2,4.85601903]
[1770428977754,0.002,2059.9,2059.2,8.84087823]
[1770428978664,0.002,2059.9,2059.3,3.9848592]
[1770428978861,0.002,2059.9,2059.3,4.03341939]
[1770428979085,0.002,2059.9,2059.4,4.87380304]
[1770428979255,0.002,2059.9,2059.6,3.9848592]
[1770428981998,0.002,2060.1,2059.6,3.9848592]
[1770428981999,0.002,2060.1,2059.8,3.9848592]
[1770428982190,1e-08,2060.5,2059.8,3.9848592]
[1770428982390,1e-08,2060.5,2060.0,3.9848592]
[1770428982707,0.002,2061.1,2060.5,3.9848592]
[1770428983006,0.002,2061.1,2060.6,3.9848592]
[1770428983884,0.002,2061.1,2060.7,1.21317998]
[1770428984803,0.002,2061.1,2060.8,3.9848592]
[1770428985003,0.002,2061.1,2060.9,0.51980392]
[1770428985373,0.003,2061.7,2060.9,4.50466312]
[1770428985777,0.003,2061.7,2061.0,5.19786259]
[1770428986114,0.003,2061.7,2061.1,3.9848592]
[1770428988624,0.003,2061.7,2061.2,5.19774489]
[1770428988784,0.003,2061.7,2061.3,1.00492877]
[1770428990122,0.003,2061.7,2061.3,4.98978797]
[1770428990584,0.002,2061.5,2061.4,1.21276802]
[1770428992035,0.002,2061.5,2061.3,2.21771917]
[1770428992393,0.002,2061.5,2061.0,3.9848592]
[1770428992394,0.002,2061.5,2061.1,1.21289528]
[1770428992612,0.002,2061.5,2061.0,1.21296445]
[1770428992819,0.002,2061.5,2060.9,0.51980392]
[1770428992820,0.002,2061.5,2060.9,1.73283858]
[1770428993034,0.002,2061.5,2060.6,1.21320482]
[1770428993035,3.92673317,2061.5,2060.6,1.21320482]
[1770428993315,3.92673317,2061.5,2060.2,0.04391958]
[1770428993518,3.92673317,2061.5,2060.5,1.2132662]
[1770428993729,3.92673317,2061.5,2060.4,1.21331245]
[1770428993903,3.92473317,2061.3,2060.6,1.21323294]
[1770428994104,3.92473317,2061.3,2059.9,0.52425478]
[1770428994310,3.92473317,2061.3,2059.9,1.73786278]
[1770428994606,0.39267332,2061.4,2059.6,1.21379237]
[1770428994607,3.92473317,2061.1,2059.6,1.21379237]
[1770428994795,3.92473317,2060.9,2059.5,3.9848592]
[1770428996030,3.92473317,2060.9,2059.5,6.488349]
[1770428996228,3.92473317,2060.9,2059.6,3.9848592]
[1770428997039,1.21312111,2060.8,2059.7,1.21376899]
[1770428997222,0.99903388,2060.7,2059.8,1.00537042]
[1770428998015,1.21312111,2060.8,2059.8,1.00537042]
[1770428998522,1.21300339,2061.0,2059.9,3.9848592]
[1770428998728,4.85164465,2061.2,2059.9,3.9848592]
[1770428999541,4.85164465,2061.2,2060.0,5.19845143]
[1770428999542,1.21288569,2061.2,2060.0,5.19845143]
[1770428999743,2.25107937,2061.2,2060.1,4.99014124]
[1770429000799,1.03819368,2061.2,2060.2,3.9848592]
[1770429001035,1.21473517,2061.5,2060.6,3.9848592]
[1770429001234,5.13946834,2061.5,2060.3,3.9848592]
[1770429001398,0.002,2061.5,2060.5,3.9848592]
[1770429001599,1.21472977,2061.5,2060.4,1.21335662]
[1770429002332,3.92473317,2061.4,2060.4,1.21335662]
[1770429002504,1.21472977,2061.5,2060.5,0.60667831]
[1770429002703,0.002,2061.5,2060.5,4.59153751]
[1770429003206,0.002,2061.3,2060.7,3.9848592]
[1770429003411,0.002,2061.3,2060.8,1.21312111]
[1770429005530,0.002,2061.3,2061.0,1.21300339]
[1770429005731,0.002,2061.3,2061.1,1.00498762]
[1770429006541,1.21200368,2062.7,2061.4,3.91209579]
[1770429006757,3.9436851,2062.6,2061.4,3.91209579]
[1770429007533,1.21200368,2062.7,2061.4,3.91209579]
[1770429007716,0.61878443,2062.6,2061.5,1.60391877]
[1770429008105,0.1278398,2062.8,2061.6,3.96507742]
[1770429008311,1.33979114,2062.8,2061.6,3.96507742]
[1770429008735,5.43831175,2062.8,2061.6,3.96507742]
[1770429010237,5.43831175,2062.8,2061.7,1.21259155]
[1770429010440,4.09852061,2062.7,2061.6,1.21264683]
[1770429010643,4.09852061,2062.6,2061.6,1.21264683]
[1770429011541,1.06070753,2062.7,2061.6,1.21264683]
[1770429012114,5.15922814,2062.7,2061.6,1.21264683]
[1770429012343,1.21206244,2062.6,2061.6,1.21264683]
[1770429012527,5.22047465,2062.5,2061.6,2.73967959]
[1770429012850,5.22047465,2062.5,2061.6,1.21264683]
[1770429013219,4.09852061,2062.4,2061.5,0.39120958]
[1770429013418,4.09852061,2062.4,2061.5,1.21270777]
[1770429014228,1.21223876,2062.3,2061.2,8.81656047]
[1770429014422,1.21223876,2062.3,2061.3,1.21282685]
[1770429015646,1.21223876,2062.3,2061.4,2.31033]
[1770429015849,2.33412187,2062.5,2061.4,3.96607742]
[1770429016156,0.002,2062.4,2061.5,4.48296785]
[1770429016317,0.002,2062.4,2061.6,5.17772778]
[1770429017637,0.002,2062.4,2061.7,3.96507742]
[1770429018357,0.002,2062.4,2061.8,1.21253273]
[1770429019355,0.002,2062.4,2061.9,3.96507742]
[1770429019559,0.002,2062.4,2062.0,0.51776101]
[1770429020160,0.002,2062.4,2061.8,5.17761015]
[1770429020460,0.002,2062.4,2062.0,1.21241513]
[1770429020959,0.04905106,2062.8,2062.2,3.96507742]
[1770429021133,1.21465519,2063.3,2062.2,3.96507742]
[1770429021333,1.21465519,2063.3,2062.0,1.25633471]
[1770429021334,0.003,2063.3,2062.4,3.96507742]
[1770429021925,1.21465215,2063.3,2062.3,0.39650774]
[1770429022127,4.09852061,2063.2,2062.3,0.39650774]